bitfinex-derivatives/quotes_SOLF0:USTF0_20260302
["timestamp","ask_amount","ask_price","bid_price","bid_amount"]
[1772443583056,6.02237415,83.955,83.886,10.76782773]
[1772443583249,6.02237415,83.955,83.885,10.76782773]
[1772443583446,6.01701642,83.951,83.884,10.76782773]
[1772443583750,6.01701642,83.951,83.883,10.76782773]
[1772443584356,6.01701642,83.947,83.884,10.729]
[1772443585257,6.0169097,83.943,83.884,10.729]
[1772443586754,6.0169097,83.941,83.884,10.729]
[1772443588457,5.99533625,83.939,83.89,3.63502394]
[1772443588759,5.99533625,83.939,83.861,14.29591303]
[1772443588760,5.99533625,83.929,83.88,3.63502394]
[1772443588949,3.63502394,83.91,83.86,3.63502394]
[1772443589153,5.99234683,83.909,83.86,3.63502394]
[1772443589952,5.99234683,83.909,83.85,3.63502394]
[1772443589953,3.63502394,83.9,83.85,3.63502394]
[1772443590260,5.99234683,83.899,83.85,3.63502394]
[1772443591955,5.98125757,83.913,83.86,3.63502394]
[1772443592358,5.98125757,83.913,83.845,10.76782773]
[1772443592359,5.98125757,83.913,83.87,3.63502394]
[1772443592953,3.63502394,83.92,83.87,3.63502394]
[1772443593161,5.98392534,83.925,83.88,3.63502394]
[1772443596960,5.98392534,83.925,83.87,3.63502394]
[1772443597361,6.05779553,83.919,83.87,3.63502394]
[1772443597862,6.05779553,83.909,83.86,14.40285167]
[1772443598264,6.05779553,83.909,83.86,3.63502394]
[1772443598456,10.725,83.917,83.86,3.63502394]
[1772443598457,6.05779553,83.899,83.86,3.63502394]
[1772443598659,6.05779553,83.912,83.85,10.76782773]
[1772443598863,6.05779553,83.912,83.87,3.63502394]
[1772443599361,6.06320098,83.909,83.86,3.63502394]
[1772443600361,6.06320098,83.909,83.87,3.63502394]
[1772443600968,6.06320098,83.909,83.857,10.76782773]
[1772443601272,6.0634409,83.899,83.851,10.76782773]
[1772443601473,6.0634409,83.889,83.846,10.76782773]
[1772443601674,6.0634409,83.889,83.845,10.76782773]
[1772443601873,6.0634409,83.889,83.84,10.76782773]
[1772443602172,6.0634409,83.889,83.84,3.63502394]
[1772443602366,14.70444865,83.943,83.836,10.76782773]
[1772443602367,6.0634409,83.903,83.85,3.63502394]
[1772443603068,6.0634409,83.903,83.852,10.733]
[1772443603667,3.63502394,83.9,83.85,3.63502394]
[1772443603867,6.07143746,83.889,83.84,14.51058724]
[1772443604072,6.07143746,83.889,83.84,3.63502394]
[1772443605172,6.07143746,83.889,83.832,10.736]
[1772443607272,6.07143746,83.889,83.841,10.735]
[1772443607472,6.07143746,83.889,83.85,3.63502394]
[1772443607674,6.07450522,83.909,83.85,3.63502394]
[1772443608074,6.07450522,83.909,83.85,14.36902394]
[1772443608276,6.07450522,83.909,83.86,3.63502394]
[1772443609971,6.07450522,83.909,83.85,10.734]
[1772443610173,6.06327835,83.889,83.841,10.735]
[1772443612482,6.06327835,83.889,83.834,10.8755633]
[1772443612681,6.07003122,83.879,83.832,10.736]
[1772443614077,6.05758625,83.869,83.824,10.8755633]
[1772443614276,6.05758625,83.869,83.823,21.6125633]
[1772443615176,6.05758625,83.869,83.823,10.737]
[1772443615880,6.05528263,83.867,83.822,10.8755633]
[1772443616079,6.05528263,83.867,83.82,3.63502394]
[1772443616277,6.05528263,83.913,83.86,3.63502394]
[1772443616476,6.05528263,83.931,83.9,3.63502394]
[1772443617079,6.05585019,83.949,83.9,3.63502394]
[1772443617285,6.05585019,83.949,83.91,3.63502394]
[1772443618477,6.05585019,83.949,83.89,9.73202377]
[1772443618882,6.05585019,83.949,83.891,10.728]
[1772443620783,6.05585019,83.949,83.844,21.78811872]
[1772443620784,6.02022123,83.944,83.872,10.8755633]
[1772443620989,6.02022123,83.944,83.86,20.60758707]
[1772443621189,6.02022123,83.944,83.869,10.8755633]
[1772443621489,6.02022123,83.944,83.885,10.729]
[1772443624987,6.02022123,83.944,83.87,9.73202377]
[1772443625190,6.08263388,83.942,83.875,10.73]
[1772443625493,6.08263388,83.942,83.855,10.8755633]
[1772443625692,6.08263388,83.935,83.874,10.731]
[1772443631795,6.06913812,83.931,83.865,10.8755633]
[1772443631999,6.06913812,83.931,83.86,20.61368425]
[1772443632394,6.06913812,83.931,83.87,10.731]
[1772443632792,6.06913812,83.931,83.874,10.8755633]
[1772443633197,6.06913812,83.931,83.875,10.8755633]
[1772443633400,6.06913812,83.931,83.874,10.8755633]
[1772443633600,6.06913812,83.931,83.884,10.729]
[1772443634399,6.06913812,83.931,83.861,10.8755633]
[1772443634599,6.06913812,83.931,83.85,10.8755633]
[1772443634800,6.08097321,83.919,83.843,10.8755633]
[1772443635196,6.08097321,83.919,83.842,10.8755633]
[1772443635401,6.08097321,83.919,83.843,10.8755633]
[1772443635602,6.07621854,83.912,83.846,10.734]
[1772443635801,6.07621854,83.912,83.847,10.8755633]
[1772443636006,6.07621854,83.912,83.848,10.8755633]
[1772443636199,6.07621854,83.912,83.851,10.8755633]
[1772443636393,6.07621854,83.912,83.85,10.8755633]
[1772443636995,6.08629171,83.933,83.87,10.8755633]
[1772443637395,6.08629171,83.933,83.88,9.73812095]
[1772443638299,6.08629477,83.95,83.88,9.73812095]
[1772443639204,6.08629477,83.95,83.893,10.728]
[1772443641205,6.07996597,83.947,83.893,10.728]
[1772443641702,6.07996597,83.944,83.893,10.728]
[1772443642010,6.07996597,83.944,83.883,10.729]
[1772443645407,6.07996597,83.944,83.892,10.728]
[1772443650510,6.07996597,83.944,83.9,3.63387903]
[1772443650712,6.07996597,83.944,83.892,10.728]
[1772443652007,6.07996597,83.944,83.9,3.63387903]
[1772443652211,321.62986847,83.984,83.92,3.63387903]
[1772443652212,3.63387903,83.97,83.92,3.63387903]
[1772443652410,6.07045663,83.973,83.93,3.63387903]
[1772443653614,6.06871887,83.989,83.94,3.63387903]
[1772443654618,6.06871887,83.987,83.931,10.723]
[1772443656117,6.0957841,83.984,83.897,10.8755633]
[1772443656315,6.0957841,83.984,83.841,196.01743187]
[1772443656316,6.0957841,83.984,83.9,9.72443515]
[1772443657020,6.0957841,83.979,83.911,10.726]
[1772443657915,6.0957841,83.979,83.92,10.725]
[1772443659819,5.98974199,83.977,83.92,10.725]
[1772443660817,5.98974199,83.975,83.92,10.725]
[1772443662818,5.98134159,83.972,83.91,10.726]
[1772443663123,9.72443515,83.99,83.9,10.8755633]
[1772443663124,5.97621206,83.969,83.9,10.8755633]
[1772443663523,5.97621206,83.959,83.9,10.8755633]
[1772443664416,16.69421206,83.974,83.9,10.8755633]
[1772443664616,21.78040791,84.006,83.91,10.8755633]
[1772443664617,5.97621206,84.005,83.91,10.8755633]
[1772443664812,5.97621206,84.005,83.915,10.8755633]
[1772443665221,5.97621206,84.005,83.914,10.8755633]
[1772443665421,5.97621206,84.005,83.915,10.8755633]
[1772443666027,5.97621206,84.005,83.92,20.59999845]
[1772443666220,5.99611553,83.991,83.93,10.723]
[1772443666816,5.99611553,83.991,83.92,20.59999845]
[1772443666817,5.99611553,83.989,83.921,10.725]
[1772443667522,5.99594806,83.972,83.911,10.8755633]
[1772443667722,5.99594806,83.972,83.89,21.78811872]
[1772443667723,5.99594806,83.969,83.904,10.8755633]
[1772443668023,5.99594806,83.969,83.888,10.8755633]
[1772443669121,9.72443515,83.97,83.896,10.728]
[1772443669122,6.06513603,83.949,83.896,10.728]
[1772443675931,6.0649296,83.947,83.891,10.8755633]
[1772443676129,6.0649296,83.947,83.892,10.8755633]
[1772443676725,6.0649296,83.947,83.895,10.728]
[1772443679934,3.63413235,83.94,83.895,10.728]
[1772443680332,9.69918556,83.94,83.895,10.728]
[1772443680538,6.06505321,83.939,83.895,10.728]
[1772443680732,9.69918556,83.93,83.886,10.8755633]
[1772443680933,6.06505321,83.929,83.885,10.729]
[1772443681136,6.06446469,83.919,83.87,3.63413235]
[1772443681441,6.06446469,83.919,83.87,10.88555298]
[1772443681640,6.06446469,83.919,83.871,10.731]
[1772443681937,6.06446469,83.919,83.87,3.63413235]
[1772443682440,6.06446469,83.919,83.866,10.88555298]
[1772443683141,6.06446469,83.919,83.865,10.88555298]
[1772443683343,6.06446469,83.919,83.88,10.73]
[1772443683746,6.06446469,83.919,83.865,10.88555298]
[1772443685136,6.06446469,83.919,83.858,10.88555298]
[1772443685642,6.10180242,83.917,83.855,10.733]
[1772443685844,6.10180242,83.917,83.849,10.88555298]
[1772443686247,6.10180242,83.917,83.848,10.88555298]
[1772443686548,6.10180242,83.917,83.847,10.88555298]
[1772443687144,6.10180242,83.917,83.846,10.88555298]
[1772443687350,6.09220831,83.915,83.846,10.88555298]
[1772443688147,6.09220831,83.915,83.845,10.88555298]
[1772443688349,6.09220831,83.913,83.84,10.88555298]
[1772443688745,6.09220831,83.912,83.83,20.62567474]
[1772443688947,6.09220831,83.912,83.836,10.88555298]
[1772443689150,6.09220831,83.912,83.834,10.88555298]
[1772443689449,6.09220831,83.912,83.861,10.732]
[1772443690554,6.09220831,83.912,83.851,10.734]
[1772443691454,6.29727864,83.909,83.851,10.734]
[1772443691850,6.29727864,83.909,83.86,10.732]
[1772443692555,6.29727864,83.909,83.85,10.734]
[1772443695152,6.34707703,83.923,83.85,9.7450272]
[1772443695356,6.34707703,83.923,83.854,10.88555298]
[1772443695658,6.34707703,83.923,83.872,10.731]
[1772443696349,17.07107703,83.923,83.862,10.732]
[1772443696557,6.34707703,83.922,83.862,10.732]
[1772443697958,6.31854262,83.918,83.862,10.732]
[1772443698858,6.31854262,83.918,83.853,10.733]
[1772443700654,6.31854262,83.918,83.861,10.732]
[1772443702556,6.33493187,83.915,83.833,10.88555298]
[1772443702752,6.33493187,83.915,83.83,9.7450272]
[1772443704259,6.30485553,83.905,83.842,10.735]
[1772443704456,6.30485553,83.889,83.842,10.735]
[1772443708364,6.30485553,83.889,83.85,10.734]
[1772443708760,6.30485553,83.889,83.85,14.3730968]
[1772443710160,0.00085553,83.889,83.851,1.57487413]
[1772443710368,10.724,83.925,83.871,1.57487413]
[1772443710665,10.724,83.925,83.88,3.6390968]
[1772443711172,10.724,83.925,83.871,1.57487413]
[1772443711364,10.724,83.925,83.874,10.731]
[1772443711560,3.6390968,83.92,83.874,10.731]
[1772443711960,3.6390968,83.92,83.871,1.57487413]
[1772443712363,3.78416428,83.919,83.871,1.57487413]
[1772443718472,3.78416428,83.919,83.881,1.76835344]
[1772443719674,3.78416428,83.933,83.881,1.76835344]
[1772443721572,3.78416428,83.929,83.881,1.76835344]
[1772443722075,3.78416428,83.946,83.91,3.6390968]
[1772443722669,3.78416428,83.962,83.92,3.6390968]
[1772443723475,3.78416428,83.962,83.913,1.76250818]
[1772443723666,3.78416428,83.96,83.913,1.76250818]
[1772443723971,3.78416428,83.929,83.888,10.88555298]
[1772443724276,3.22621547,83.887,83.829,3.8671095]
[1772443725370,3.45503395,83.883,83.829,3.8671095]
[1772443726374,3.45503395,83.883,83.834,3.8671095]
[1772443727876,3.4633976,83.897,83.84,3.8639552]
[1772443729279,3.53448039,83.919,83.853,3.8639552]
[1772443731179,3.58480419,83.917,83.853,3.8639552]
[1772443731880,3.58480419,83.911,83.856,3.8639552]
[1772443734180,3.58480419,83.911,83.858,3.8639552]
[1772443735173,3.58480419,83.911,83.863,10.732]
[1772443735481,3.61581965,83.925,83.864,3.8639552]
[1772443736281,3.61581965,83.925,83.866,3.8639552]
[1772443736975,3.61581965,83.924,83.866,3.8639552]
[1772443738178,3.61581965,83.924,83.868,10.731]
[1772443738382,3.61581965,83.924,83.868,14.5949552]
[1772443738578,3.61581965,83.924,83.869,3.8639552]
[1772443739082,3.62511285,83.923,83.858,10.733]
[1772443739279,9.75050536,83.92,83.829,3.8639552]
[1772443739486,3.62511285,83.899,83.829,3.8639552]
[1772443739780,3.62511285,83.878,83.829,3.8639552]
[1772443739980,3.62511285,83.878,83.814,3.8639552]
[1772443740887,3.62511285,83.865,83.814,3.8639552]
[1772443741782,3.72908288,83.879,83.816,3.8639552]
[1772443741985,3.72908288,83.913,83.821,3.8639552]
[1772443742285,3.72908288,83.913,83.841,3.8639552]
[1772443743088,3.75458789,83.945,83.861,3.8639552]
[1772443743489,3.75458789,83.945,83.837,167.002]
[1772443743490,3.75458789,83.961,83.881,3.8639552]
[1772443744380,3.75458789,83.958,83.902,3.8639552]
[1772443745180,10.72,83.956,83.902,3.8639552]
[1772443745375,3.75458789,83.958,83.902,3.8639552]
[1772443747780,3.75458789,83.958,83.904,3.8639552]
[1772443748088,3.75458789,83.965,83.904,3.8639552]
[1772443749287,3.75458789,83.965,83.907,10.726]
[1772443749992,3.75458789,83.965,83.904,3.8639552]
[1772443750993,3.75458789,83.949,83.888,3.8639552]
[1772443752993,3.75458789,83.935,83.872,3.8639552]
[1772443753192,3.75458789,83.929,83.872,3.8639552]
[1772443754196,3.87708823,83.926,83.872,3.8639552]
[1772443754387,3.87708823,83.926,83.859,10.732]
[1772443754588,9.73351222,83.91,83.857,3.84798714]
[1772443754794,10.727,83.905,83.83,9.73351222]
[1772443755092,3.87708823,83.904,83.837,3.84798714]
[1772443756188,3.87708823,83.904,83.843,3.84798714]
[1772443759402,3.75121173,83.902,83.843,3.84798714]
[1772443759798,3.75121173,83.902,83.81,14.45670662]
[1772443759799,3.75121173,83.889,83.828,3.90258508]
[1772443760006,3.75121173,83.928,83.832,3.90258508]
[1772443761303,3.75121173,83.916,83.844,3.90258508]
[1772443762204,3.75121173,83.911,83.844,3.90258508]
[1772443763404,3.75121173,83.906,83.844,3.90258508]
[1772443765408,3.75121173,83.906,83.846,3.90258508]
[1772443768706,10.727,83.905,83.846,3.90258508]
[1772443769009,3.75121173,83.904,83.846,3.90258508]
[1772443769911,3.75121173,83.901,83.846,3.90258508]
[1772443770510,3.63895924,83.89,83.846,3.90258508]
[1772443771311,3.63895924,83.88,83.846,3.90258508]
[1772443772203,3.63895924,83.86,83.82,3.90258508]
[1772443774601,3.75121173,83.869,83.82,3.90258508]
[1772443774806,3.75121173,83.867,83.82,3.90258508]
[1772443776009,10.732,83.864,83.82,3.90258508]
[1772443776317,10.732,83.864,83.78,9.75467863]
[1772443776318,3.75121173,83.863,83.798,3.90258508]
[1772443776508,10.734,83.849,83.798,3.90258508]
[1772443776712,3.75121173,83.859,83.798,3.90258508]
[1772443777904,3.74928121,83.857,83.798,3.90258508]
[1772443779209,10.733,83.854,83.798,3.90258508]
[1772443779411,14.48421173,83.854,83.798,3.90258508]
[1772443780812,10.734,83.851,83.798,3.90258508]
[1772443785111,14.48521173,83.851,83.798,3.90258508]
[1772443785316,10.734,83.846,83.798,3.90258508]
[1772443786716,3.75121173,83.862,83.801,3.90258508]
[1772443787114,3.75121173,83.859,83.801,3.90258508]
[1772443788318,14.31445587,83.851,83.801,3.90258508]
[1772443788520,3.58045587,83.85,83.801,3.90258508]
[1772443791420,3.58045587,83.85,83.805,3.78706877]
[1772443792518,3.58045587,83.85,83.807,3.78706877]
[1772443796323,3.58045587,83.844,83.761,46.76791098]
[1772443796522,3.64697966,83.8,83.762,3.78706877]
[1772443796821,3.64697966,83.82,83.771,3.78706877]
[1772443797023,3.64697966,83.83,83.781,3.78706877]
[1772443797225,7.22743553,83.83,83.781,3.78706877]
[1772443800229,3.58045587,83.83,83.791,3.78706877]
[1772443800428,3.58045587,83.839,83.791,3.78706877]
[1772443800829,3.64697966,83.85,83.801,3.78706877]
[1772443801130,3.58045587,83.849,83.801,3.78706877]
[1772443801927,3.58045587,83.859,83.811,3.78706877]
[1772443802520,3.64697966,83.85,83.811,3.78706877]
[1772443802820,3.58045587,83.856,83.811,3.78706877]
[1772443806331,10.732,83.868,83.811,3.78706877]
[1772443806531,3.58045587,83.869,83.821,3.78706877]
[1772443806728,3.58045587,83.869,83.83,3.64697966]
[1772443807333,3.58045587,83.867,83.821,3.78706877]
[1772443808432,3.58045587,83.861,83.821,3.78706877]
[1772443810729,10.731,83.873,83.83,3.64086895]
[1772443810934,10.731,83.873,83.83,7.42793772]
[1772443812639,3.58045587,83.888,83.841,3.78706877]
[1772443815239,3.90294947,83.879,83.841,3.78706877]
[1772443818737,3.91929658,83.877,83.809,3.9552398]
[1772443818937,3.91929658,83.869,83.82,7.59610875]
[1772443819139,3.91929658,83.869,83.821,3.9552398]
[1772443821044,3.91929658,83.869,83.83,3.64086895]
[1772443824742,14.65029658,83.868,83.83,3.64086895]
[1772443825048,3.91929658,83.867,83.821,3.9552398]
[1772443826246,3.91929658,83.865,83.821,3.9552398]
[1772443826745,3.64086895,83.88,83.83,3.64086895]
[1772443826951,3.91929658,83.879,83.831,3.9552398]
[1772443828449,3.91929658,83.876,83.831,3.9552398]
[1772443830249,10.731,83.874,83.831,3.9552398]
[1772443830750,3.91929658,83.873,83.831,3.9552398]
[1772443832048,7.56016553,83.87,83.831,3.9552398]
[1772443832552,3.91929658,83.88,83.831,3.9552398]
[1772443833551,3.64086895,83.89,83.841,3.9552398]
[1772443833949,10.729,83.889,83.841,3.9552398]
[1772443834150,3.91929658,83.888,83.841,3.9552398]
[1772443837061,3.91929658,83.888,83.85,3.64086895]
[1772443837254,3.91929658,83.906,83.851,3.9552398]
[1772443837456,3.91929658,83.929,83.88,7.59610875]
[1772443837657,3.91929658,83.929,83.88,3.9552398]
[1772443839260,10.725,83.921,83.88,3.9552398]
[1772443840057,3.64086895,83.92,83.88,3.9552398]
[1772443840655,7.56016553,83.92,83.88,3.9552398]
[1772443840854,3.91929658,83.919,83.88,3.9552398]
[1772443841951,3.91929658,83.889,83.83,3.64086895]
[1772443842149,188.245,83.939,83.828,3.9552398]
[1772443842150,3.91929658,83.879,83.828,3.9552398]
[1772443843159,7.56016553,83.87,83.828,3.9552398]
[1772443843358,3.64086895,83.86,83.828,3.9552398]
[1772443843560,7.56016553,83.87,83.828,3.9552398]
[1772443843757,3.64086895,83.86,83.828,3.9552398]
[1772443845054,3.64086895,83.88,83.831,3.9552398]
[1772443846263,10.73,83.878,83.831,3.9552398]
[1772443847962,3.64086895,83.87,83.831,3.9552398]
[1772443849661,3.93950524,83.899,83.853,3.9379204]
[1772443850259,3.64086895,83.89,83.853,3.9379204]
[1772443853566,3.93950524,83.899,83.853,3.9379204]
[1772443854263,3.64086895,83.91,83.855,3.9379204]
[1772443854462,3.64086895,83.9,83.855,3.9379204]
[1772443855264,3.64086895,83.9,83.861,3.9379204]
[1772443855967,3.88251029,83.909,83.861,3.9379204]
[1772443858067,3.64086895,83.88,83.831,3.9379204]
[1772443858467,3.82985844,83.889,83.831,3.9379204]
[1772443859170,3.82985844,83.889,83.841,3.9379204]
[1772443863873,3.82985844,83.889,83.84,3.64086895]
[1772443863874,3.82985844,83.889,83.843,3.9379204]
[1772443873383,3.82985844,83.889,83.845,10.734]
[1772443873584,3.82985844,83.889,83.846,3.9379204]
[1772443874386,3.63723291,83.899,83.851,3.7498658]
[1772443875091,7.27638189,83.91,83.852,3.7498658]
[1772443875287,7.27638189,83.91,83.861,3.7498658]
[1772443875486,3.63723291,83.91,83.861,3.7498658]
[1772443875990,3.63723291,83.909,83.861,3.7498658]
[1772443876191,3.63723291,83.909,83.864,10.732]
[1772443876588,3.63723291,83.909,83.864,3.7498658]
[1772443878494,3.63914898,83.89,83.85,3.64333772]
[1772443878691,3.61463856,83.889,83.85,3.64333772]
[1772443881490,7.25378754,83.9,83.854,3.64333772]
[1772443881685,3.61463856,83.899,83.854,3.64333772]
[1772443882088,3.61463856,83.899,83.822,21.78811872]
[1772443882089,7.25378754,83.91,83.861,3.64333772]
[1772443882496,3.61463856,83.909,83.871,3.64333772]
[1772443882692,10.725,83.919,83.871,3.64333772]
[1772443882693,3.63914898,83.92,83.871,3.64333772]
[1772443883896,7.25378754,83.92,83.873,3.64333772]
[1772443884101,3.61463856,83.919,83.873,3.64333772]
[1772443884700,3.61463856,83.919,83.823,21.475]
[1772443884701,3.61463856,83.899,83.856,3.64333772]
[1772443886398,3.61463856,83.899,83.858,3.64333772]
[1772443886804,3.61463856,83.909,83.858,3.64333772]
[1772443887099,3.61463856,83.909,83.861,3.64333772]
[1772443888205,3.61463856,83.909,83.864,10.732]
[1772443888502,3.63914898,83.9,83.864,10.732]
[1772443888699,3.63914898,83.9,83.861,3.64333772]
[1772443888899,3.63914898,83.9,83.862,10.732]
[1772443889104,3.63914898,83.9,83.811,28.97900921]
[1772443889105,12.40182697,83.924,83.871,3.64333772]
[1772443889297,3.61463856,83.924,83.871,3.64333772]
[1772443890106,3.61463856,83.924,83.874,3.64333772]
[1772443890500,3.61463856,83.924,83.881,3.64333772]
[1772443891807,3.63914898,83.93,83.881,3.64333772]
[1772443892001,3.61463856,83.937,83.891,3.64333772]
[1772443892904,3.63914898,83.94,83.84,62.0]
[1772443892905,3.61463856,83.949,83.901,3.64333772]
[1772443893107,21.71037448,83.95,83.911,3.64333772]
[1772443893309,3.63914898,83.96,83.911,3.64333772]
[1772443894202,3.63914898,83.96,83.916,3.64333772]
[1772443894406,3.61463856,83.961,83.921,3.64333772]
[1772443894807,3.63914898,83.97,83.921,3.64333772]
[1772443895013,204.17370953,83.974,83.925,3.64333772]
[1772443895408,3.61463856,83.974,83.931,3.64333772]
[1772443896009,3.61463856,83.974,83.933,3.64333772]
[1772443897213,3.61463856,83.988,83.938,3.64333772]
[1772443898113,3.63914898,83.98,83.938,3.64333772]
[1772443898705,3.61463856,83.988,83.941,3.64333772]
[1772443898912,3.61463856,83.999,83.951,3.64333772]
[1772443899412,3.61463856,83.999,83.96,7.2824867]
[1772443900513,3.61463856,83.999,83.96,3.64333772]
[1772443900708,3.61463856,84.027,83.971,3.64333772]
[1772443900910,3.63914898,84.02,83.968,3.64333772]
[1772443901116,3.63914898,84.01,83.97,3.63914898]
[1772443901314,3.61463856,83.989,83.936,3.64333772]
[1772443901508,3.63914898,83.98,83.936,3.64333772]
[1772443902714,3.63914898,83.98,83.936,14.36633772]
[1772443903015,3.63914898,83.98,83.937,3.64333772]
[1772443904413,3.63914898,83.99,83.941,3.64333772]
[1772443905219,3.63914898,83.99,83.944,3.64333772]
[1772443905416,3.63914898,83.98,83.944,3.64333772]
[1772443908309,3.68334793,83.969,83.92,3.63914898]
[1772443908514,3.68334793,83.969,83.921,3.85953245]
[1772443909310,3.68334793,83.969,83.922,10.724]
[1772443909512,3.68334793,83.969,83.923,3.85953245]
[1772443910616,3.63914898,83.96,83.923,3.85953245]
[1772443911019,3.68334793,83.969,83.923,3.85953245]
[1772443911216,3.63914898,83.96,83.923,3.85953245]
[1772443911713,3.68334793,83.959,83.91,3.85953245]
[1772443911914,3.63914898,83.95,83.91,3.85953245]
[1772443912117,3.63914898,83.94,83.903,10.727]
[1772443912321,3.63914898,83.94,83.897,3.85953245]
[1772443912717,3.63914898,83.94,83.898,10.727]
[1772443912918,3.68334793,83.949,83.901,3.85953245]
[1772443914514,3.68334793,83.968,83.92,3.63914898]
[1772443914725,3.68334793,83.968,83.921,3.85953245]
[1772443915312,3.68334793,83.968,83.923,3.85953245]
[1772443919324,3.68334793,83.968,83.925,3.85953245]
[1772443920327,3.68334793,83.959,83.909,3.85953245]
[1772443920529,7.32249691,83.95,83.909,3.85953245]
[1772443921324,3.68334793,83.95,83.91,3.63914898]
[1772443921528,3.68334793,83.98,83.931,3.85953245]
[1772443921734,3.68334793,83.98,83.941,3.85953245]
[1772443922236,7.32249691,83.98,83.941,3.85953245]
[1772443922440,3.68334793,83.98,83.941,3.85953245]
[1772443922640,14.35514898,83.99,83.941,3.85953245]
[1772443922941,3.68334793,83.993,83.942,3.85953245]
[1772443923443,3.63914898,83.99,83.942,3.85953245]
[1772443923739,3.63914898,83.98,83.942,3.85953245]
[1772443924131,3.63914898,84.0,83.95,3.63914898]
[1772443924336,7.27505813,84.0,83.951,3.85953245]
[1772443924535,3.63590915,83.999,83.951,3.85953245]
[1772443925536,3.63914898,83.99,83.951,3.85953245]
[1772443926040,3.63673399,83.979,83.937,3.85953245]
[1772443931539,10.716,83.989,83.941,3.85953245]
[1772443931740,3.63914898,83.99,83.941,3.85953245]
[1772443931741,3.68029463,83.992,83.941,3.85953245]
[1772443932249,3.63914898,83.99,83.941,3.85953245]
[1772443932543,3.63031237,83.99,83.941,3.85953245]
[1772443932744,3.68029463,83.989,83.941,3.85953245]
[1772443932948,3.68029463,83.979,83.93,3.63031237]
[1772443933551,3.68029463,83.979,83.931,3.85953245]
[1772443935148,3.68029463,83.979,83.933,10.723]
[1772443935350,3.68029463,83.979,83.934,3.75314542]
[1772443938349,3.60918166,83.975,83.934,3.75314542]
[1772443938551,3.60918166,83.969,83.921,3.66020913]
[1772443938846,3.60918166,83.969,83.93,3.63031237]
[1772443939154,3.60918166,83.969,83.921,3.66020913]
[1772443939356,3.60918166,83.969,83.931,3.66020913]
[1772443939554,3.60918166,83.969,83.932,3.66020913]
[1772443940054,3.63031237,83.98,83.932,3.66020913]
[1772443940251,3.60918166,83.979,83.932,3.66020913]
[1772443946760,3.60918166,83.959,83.916,3.66020913]
[1772443947056,3.63031237,83.94,83.901,3.66020913]
[1772443947454,3.60918166,83.949,83.901,3.66020913]
[1772443949460,3.60918166,83.939,83.89,7.2905215]
[1772443949761,3.60918166,83.939,83.891,3.66020913]
[1772443951659,3.60918166,83.929,83.891,3.66020913]
[1772443951864,3.63031237,83.92,83.871,3.66020913]
[1772443952065,3.60918166,83.919,83.871,3.66020913]
[1772443953364,3.60918166,83.971,83.911,3.37931509]
[1772443953556,3.60918166,83.969,83.92,7.00962746]
[1772443953755,3.60918166,83.966,83.92,7.00962746]
[1772443953960,3.60918166,83.966,83.92,3.37931509]
[1772443954459,3.60918166,83.959,83.91,3.63031237]
[1772443955768,3.60918166,83.959,83.91,7.2905215]
[1772443957662,3.60918166,83.959,83.758,11.91]
[1772443957663,3.60918166,83.979,83.93,3.89984356]
[1772443958059,3.60918166,83.979,83.931,0.26953119]
[1772443958261,3.60918166,83.979,83.94,3.63031237]
[1772443960073,3.60918166,83.979,83.931,0.26953119]
[1772443960568,3.60918166,83.979,83.92,3.63031237]
[1772443960872,3.60918166,83.979,83.92,3.82230995]
[1772443961070,3.60918166,83.979,83.93,3.63031237]
[1772443962561,3.60918166,83.979,83.93,3.89982436]
[1772443963169,3.60918166,83.979,83.931,0.25978856]
[1772443963371,3.60918166,83.979,83.94,3.63031237]
[1772443965270,3.60918166,83.979,83.931,0.25978856]
[1772443966665,3.60918166,83.979,83.94,3.63031237]
[1772443966871,3.60918166,83.979,83.94,3.88297654]
[1772443967473,3.83745315,83.996,83.95,3.63031237]
[1772443968274,3.83745315,83.996,83.941,0.24413611]
[1772443968871,3.83743475,84.008,83.951,0.24417292]
[1772443970282,3.81438066,83.999,83.951,0.24417292]
[1772443970476,3.81438066,83.979,83.93,3.92059347]
[1772443970775,3.81438066,83.979,83.931,0.2902811]
[1772443971580,3.81438066,83.979,83.94,3.63031237]
[1772443973480,3.63031237,83.99,83.951,0.29328395]
[1772443973680,3.81287923,83.989,83.94,3.63031237]
[1772443973874,3.81287923,83.989,83.936,0.29328395]
[1772443975172,10.716,83.986,83.936,0.29328395]
[1772443975378,3.82991168,83.985,83.936,0.29328395]
[1772443976380,3.82991168,83.985,83.94,3.63031237]
[1772443977283,3.82991168,83.985,83.941,0.46618407]
[1772443977481,3.77109673,83.999,83.951,0.46618407]
[1772443979495,3.77085363,83.989,83.922,0.5425914]
[1772443979798,3.77085363,83.969,83.922,0.5425914]
[1772443980193,3.77073251,83.959,83.907,0.58026872]
[1772443980392,21.426,84.014,83.907,0.58026872]
[1772443980393,3.77073251,83.949,83.907,0.58026872]